bitfinex-derivatives/quotes_BTCF0:USTF0_20260107
["timestamp","ask_amount","ask_price","bid_price","bid_amount"]
[1767783903622,0.10816839,92123.0,92103.0,0.01223356]
[1767783904616,0.01202971,92122.0,92103.0,0.01223356]
[1767783904820,0.10816839,92122.0,92103.0,0.01223356]
[1767783905113,0.10816839,92121.0,92101.0,0.09236]
[1767783905315,0.10816839,92120.0,92101.0,0.09236]
[1767783905820,0.10816839,92118.0,92101.0,0.09236]
[1767783906209,0.09613868,92118.0,92101.0,0.09236]
[1767783908421,0.20056839,92124.0,92102.0,0.01223356]
[1767783908717,0.10816839,92123.0,92102.0,0.01223356]
[1767783908913,0.01202971,92122.0,92102.0,0.01223356]
[1767783909120,0.10816839,92122.0,92102.0,0.01223356]
[1767783909613,0.09613868,92122.0,92110.0,0.07438285]
[1767783909818,0.0924,92124.0,92105.0,0.01223356]
[1767783910009,0.10816839,92126.0,92110.0,0.07438285]
[1767783910213,0.10816839,92126.0,92105.0,0.01223356]
[1767783910214,0.01202971,92124.0,92105.0,0.01223356]
[1767783910414,0.10816839,92123.0,92105.0,0.01223356]
[1767783910808,0.10816839,92123.0,92102.0,0.09937694]
[1767783911015,0.10816839,92122.0,92102.0,0.1116105]
[1767783911423,0.10816839,92122.0,92103.0,0.01223356]
[1767783913116,0.09613868,92122.0,92103.0,0.01223356]
[1767783913616,0.09613868,92122.0,92110.0,0.07438285]
[1767783913812,0.09613868,92122.0,92103.0,0.01223356]
[1767783917020,0.10816839,92127.0,92110.0,0.07438285]
[1767783917318,0.09613868,92127.0,92117.0,0.07438285]
[1767783917512,0.09613868,92127.0,92111.0,0.10459356]
[1767783917711,0.09613868,92127.0,92111.0,0.09236]
[1767783918121,0.02002971,92128.0,92112.0,0.01223356]
[1767783918122,0.008,92128.0,92112.0,0.01223356]
[1767783918421,0.008,92128.0,92114.0,0.01223356]
[1767783918826,0.008,92128.0,92111.0,0.09236]
[1767783919324,0.11616839,92128.0,92111.0,0.09236]
[1767783919529,0.01202971,92127.0,92111.0,0.09236]
[1767783919825,0.01202971,92140.0,92117.0,0.08661641]
[1767783920320,0.01202971,92140.0,92113.0,0.09937694]
[1767783920321,0.01202971,92140.0,92118.0,0.01223356]
[1767783920624,0.01202971,92140.0,92120.0,0.07438285]
[1767783920821,0.01202971,92140.0,92121.0,0.09236]
[1767783921122,0.01202971,92149.0,92124.0,0.01223356]
[1767783921321,0.01202971,92149.0,92130.0,0.07438285]
[1767783921526,0.09236,92161.0,92139.0,0.07438285]
[1767783921822,0.09613868,92158.0,92134.0,0.09236]
[1767783922026,0.09613868,92158.0,92140.0,0.07438285]
[1767783922226,0.09613868,92158.0,92140.0,0.07454569]
[1767783922642,0.09613868,92158.0,92140.0,0.00016284]
[1767783923644,0.10816839,92156.0,92140.0,0.07454569]
[1767783923950,0.10816839,92155.0,92140.0,0.00016284]
[1767783924541,0.09613868,92155.0,92140.0,0.07454569]
[1767783925243,0.09613868,92155.0,92140.0,0.00016284]
[1767783925547,0.09613868,92155.0,92140.0,0.07454569]
[1767783931254,0.09613868,92155.0,92140.0,0.00016284]
[1767783931553,0.09613868,92160.0,92141.0,0.01223356]
[1767783931948,0.10031072,92159.0,92141.0,0.01223356]
[1767783932148,0.11256034,92159.0,92140.0,0.07454569]
[1767783935943,0.11256034,92159.0,92140.0,0.00016284]
[1767783936252,0.11039017,92158.0,92140.0,0.07454569]
[1767783936754,0.11039017,92157.0,92140.0,0.07454569]
[1767783937139,0.11039017,92157.0,92140.0,0.00016284]
[1767783937451,0.11039017,92157.0,92140.0,0.07454569]
[1767783938445,0.11039017,92157.0,92140.0,0.00016284]
[1767783938646,0.11039017,92157.0,92140.0,0.07454569]
[1767783943159,0.09814055,92157.0,92140.0,0.08581175]
[1767783943358,0.09814055,92157.0,92140.0,0.0114289]
[1767783943559,0.09814055,92157.0,92140.0,0.08581175]
[1767783944858,0.09814055,92157.0,92140.0,0.07454569]
[1767783945248,0.11039017,92157.0,92140.0,0.07454569]
[1767783946263,0.00217017,92159.0,92122.0,0.01126606]
[1767783946264,0.11039017,92141.0,92122.0,0.01126606]
[1767783946464,0.11039017,92139.0,92118.0,0.09487989]
[1767783946764,0.11039017,92139.0,92120.0,0.07438285]
[1767783947763,0.09814055,92137.0,92119.0,0.01126606]
[1767783947963,0.11039017,92135.0,92120.0,0.09236]
[1767783949068,0.11039017,92135.0,92121.0,0.09236]
[1767783949369,0.09814055,92135.0,92121.0,0.09236]
[1767783951658,0.01224962,92139.0,92121.0,0.09236]
[1767783951963,0.01224962,92139.0,92121.0,0.10362606]
[1767783952166,0.09814055,92140.0,92122.0,0.01126606]
[1767783953468,0.11039017,92137.0,92121.0,0.09236]
[1767783955466,0.09814055,92137.0,92121.0,0.10362606]
[1767783957068,0.09814055,92130.0,92122.0,0.09236]
[1767783957267,0.09814055,92130.0,92123.0,0.09236]
[1767783957469,0.09814055,92130.0,92121.0,0.09236]
[1767783957680,0.09814055,92130.0,92111.0,0.01126606]
[1767783957966,0.11039017,92130.0,92112.0,0.50362606]
[1767783958160,0.09814055,92130.0,92112.0,0.50362606]
[1767783958868,0.01224962,92133.0,92113.0,0.01126606]
[1767783959568,0.11039017,92133.0,92113.0,0.01126606]
[1767783960167,0.01205342,92132.0,92113.0,0.01126606]
[1767783960866,0.01205342,92139.0,92115.0,0.09781141]
[1767783961070,0.09748545,92140.0,92122.0,0.01162885]
[1767783961365,0.09748545,92140.0,92123.0,0.09236]
[1767783961565,0.09236,92148.0,92132.0,0.01127443]
[1767783961861,0.09236,92148.0,92131.0,0.09352053]
[1767783962067,0.10360499,92148.0,92128.0,0.01127443]
[1767783962268,0.11033811,92147.0,92128.0,0.01127443]
[1767783965172,0.09909312,92147.0,92129.0,0.01127443]
[1767783965870,0.01124499,92151.0,92130.0,0.01127443]
[1767783966064,0.11033811,92151.0,92130.0,0.01127443]
[1767783966370,0.01124499,92150.0,92130.0,0.01127443]
[1767783966970,0.09236,92155.0,92136.0,0.01127443]
[1767783967271,0.01124499,92157.0,92138.0,0.01127443]
[1767783969666,0.00217017,92159.0,92141.0,0.01127443]
[1767783970163,0.00217017,92159.0,92142.0,0.01127443]
[1767783970363,0.01124499,92185.0,92146.0,0.01127443]
[1767783970568,0.30805648,92226.0,92137.0,0.09236]
[1767783970569,0.01041446,92189.0,92166.0,0.01127443]
[1767783970868,0.09909312,92187.0,92157.0,0.18292]
[1767783971061,0.09909312,92187.0,92158.0,0.09236]
[1767783971268,0.09909312,92187.0,92158.0,0.10321662]
[1767783971466,0.09909312,92187.0,92158.0,0.09236]
[1767783971766,0.09909312,92187.0,92144.0,0.09352053]
[1767783971967,0.09909312,92186.0,92145.0,0.16088]
[1767783972270,0.09909312,92186.0,92146.0,0.01127443]
[1767783972474,0.09909312,92186.0,92147.0,0.01127443]
[1767783972770,0.00918834,92177.0,92147.0,0.01127443]
[1767783972974,0.00918834,92171.0,92147.0,0.01127443]
[1767783973170,0.00935357,92169.0,92147.0,0.01127443]
[1767783973759,0.00935357,92169.0,92149.0,0.01127443]
[1767783973967,0.09236,92190.0,92154.0,0.10479496]
[1767783974163,0.09236,92190.0,92155.0,0.09232]
[1767783974874,0.09236,92190.0,92155.0,0.18584053]
[1767783975076,0.09236,92190.0,92155.0,0.19711496]
[1767783975881,0.09909312,92187.0,92155.0,0.19711496]
[1767783976173,0.00273773,92178.0,92155.0,0.19711496]
[1767783977968,0.00273773,92178.0,92156.0,0.09352053]
[1767783980383,0.00230619,92177.0,92156.0,0.09352053]
[1767783981581,0.00239983,92175.0,92156.0,0.09352053]
[1767783983371,0.00239983,92175.0,92156.0,0.10479496]
[1767783983584,0.00190109,92180.0,92158.0,0.09352053]
[1767783983882,0.10099421,92180.0,92158.0,0.09352053]
[1767783984083,0.00190109,92179.0,92158.0,0.09352053]
[1767783984298,0.00179624,92178.0,92158.0,0.09352053]
[1767783985577,0.00179624,92178.0,92160.0,0.09352053]
[1767783991287,0.00179624,92178.0,92159.0,0.0134446]
[1767783991288,0.00083163,92176.0,92159.0,0.00217017]
[1767783992391,0.00324698,92168.0,92145.0,0.01449722]
[1767783992580,0.00324698,92166.0,92146.0,0.09232]
[1767783992781,0.00324698,92166.0,92147.0,0.01449722]
[1767783993092,0.09443365,92172.0,92147.0,0.01449722]
[1767783993287,0.09443365,92172.0,92150.0,0.09036884]
[1767783993585,0.00304768,92177.0,92156.0,0.10486606]
[1767783993774,0.00304768,92177.0,92158.0,0.01449722]
[1767783994893,0.09232,92180.0,92146.0,0.09232]
[1767783994894,0.09232,92180.0,92161.0,0.01449722]
[1767783995794,0.09232,92180.0,92162.0,0.01449722]
[1767783996184,0.09232,92180.0,92165.0,0.01449722]
[1767783996384,0.09232,92180.0,92161.0,0.01449722]
[1767783996690,0.09232,92180.0,92163.0,0.01449722]
[1767783998388,0.09232,92180.0,92167.0,0.01449722]
[1767783999100,0.09232,92180.0,92170.0,0.01449722]
[1767784000096,0.09232,92180.0,92169.0,0.09036884]
[1767784002495,0.09232,92180.0,92169.0,0.10486606]
[1767784003288,0.09232,92180.0,92170.0,0.01449722]
[1767784003797,0.01352009,92246.0,92177.0,0.09688737]
[1767784003988,0.01352009,92229.0,92179.0,0.09036884]
[1767784004292,0.09118667,92218.0,92181.0,0.09036884]
[1767784004496,0.10220676,92218.0,92183.0,0.09036884]
[1767784004689,0.01352009,92217.0,92183.0,0.09036884]
[1767784005196,0.01352009,92217.0,92191.0,0.01351046]
[1767784005499,0.01352009,92217.0,92193.0,0.01351046]
[1767784006400,0.10470676,92217.0,92193.0,0.01351046]
[1767784006897,0.10470676,92209.0,92194.0,0.09232]
[1767784007088,0.10470676,92209.0,92189.0,0.01339424]
[1767784007289,0.09118667,92209.0,92191.0,0.94356099]
[1767784007496,0.09118667,92205.0,92184.0,0.08031541]
[1767784007695,0.09118667,92205.0,92187.0,0.93072]
[1767784008095,0.09118667,92205.0,92188.0,0.01284099]
[1767784008298,0.10470676,92211.0,92188.0,0.01284099]
[1767784008997,0.10470676,92211.0,92189.0,0.01261889]
[1767784009198,0.09118667,92211.0,92190.0,0.01283064]
[1767784010502,0.09118667,92214.0,92191.0,0.09232]
[1767784010700,0.09118667,92210.0,92191.0,0.09232]
[1767784011504,0.10470676,92210.0,92191.0,0.09232]
[1767784011804,0.09118667,92208.0,92191.0,0.09232]
[1767784014393,0.09118667,92206.0,92191.0,0.09232]
[1767784018106,0.10470676,92200.0,92179.0,0.01087589]
[1767784018306,0.10470676,92199.0,92180.0,1.02288]
[1767784018505,0.10470676,92199.0,92180.0,1.09711156]
[1767784018695,0.10470676,92199.0,92180.0,1.02288]
[1767784018896,0.10470676,92201.0,92181.0,0.01066032]
[1767784020503,0.10822814,92200.0,92181.0,0.01066032]
[1767784021006,0.10822814,92200.0,92182.0,0.09228]
[1767784021208,0.10822814,92200.0,92181.0,0.01066032]
[1767784021398,0.10822814,92200.0,92182.0,0.09228]
[1767784022397,0.10834532,92194.0,92173.0,0.01039265]
[1767784022606,0.09128239,92194.0,92180.0,0.07423156]
[1767784024012,0.09128239,92197.0,92180.0,0.07423156]
[1767784024311,0.09128239,92197.0,92181.0,0.00969408]
[1767784024701,0.09128239,92197.0,92180.0,0.07423156]
[1767784024900,0.01706293,92194.0,92177.0,0.9306]
[1767784025109,0.09128239,92191.0,92177.0,0.9306]
[1767784027010,0.09128239,92191.0,92174.0,0.09228]
[1767784027011,0.10834532,92189.0,92168.0,0.01033654]
[1767784027316,0.09128239,92182.0,92169.0,0.44668]
[1767784027705,0.01706293,92186.0,92169.0,0.84668]
[1767784028006,0.01706293,92186.0,92169.0,0.44668]
[1767784029015,0.10834532,92183.0,92169.0,0.44668]
[1767784030016,0.01706293,92176.0,92158.0,0.00996718]
[1767784030223,0.07423156,92190.0,92158.0,0.00996718]
[1767784030224,0.07423156,92170.0,92159.0,1.5]
[1767784030618,0.01706293,92172.0,92158.0,0.09228]
[1767784030820,0.01706293,92171.0,92158.0,0.09228]
[1767784031123,0.01706293,92171.0,92154.0,1.5]
[1767784031322,0.01706293,92171.0,92154.0,1.59228]
[1767784031718,0.01706293,92171.0,92154.0,0.09228]
[1767784033124,0.18257688,92170.0,92154.0,0.09228]
[1767784033319,0.10834532,92169.0,92154.0,0.09228]
[1767784037028,0.01706293,92168.0,92154.0,0.09228]
[1767784038226,0.09128239,92169.0,92154.0,0.09228]
[1767784042426,0.20062532,92175.0,92155.0,0.01041569]
[1767784042936,0.20062532,92175.0,92155.0,0.10366902]
[1767784044135,0.01706293,92174.0,92155.0,0.10366902]
[1767784045025,0.18356239,92175.0,92156.0,0.01000663]
[1767784045227,0.09228,92175.0,92158.0,0.00904635]
[1767784045434,0.10934293,92175.0,92155.0,0.00904635]
[1767784046530,0.09228,92175.0,92155.0,0.00904635]
[1767784046845,0.09228,92175.0,92156.0,0.00883687]
[1767784047330,0.09128239,92176.0,92156.0,0.00883687]
[1767784048037,0.09128239,92176.0,92160.0,0.07423156]
[1767784048234,0.36932,92202.0,92160.0,0.07423156]
[1767784048235,0.01706293,92203.0,92183.0,0.10174204]
[1767784048440,0.01706293,92203.0,92184.0,0.01681861]
[1767784048441,0.09232,92203.0,92184.0,0.01681861]
[1767784048631,0.09232,92203.0,92180.0,0.07423156]
[1767784048632,0.09232,92203.0,92187.0,0.01681861]
[1767784049032,0.09232,92203.0,92186.0,0.09325333]
[1767784049239,0.09232,92203.0,92186.0,0.18159736]
[1767784050040,0.09232,92202.0,92186.0,0.18159736]
[1767784050428,0.09232,92203.0,92186.0,0.18159736]
[1767784050941,0.09232,92206.0,92190.0,0.07423156]
[1767784051128,0.09232,92206.0,92187.0,0.01681861]
[1767784051129,0.09232,92206.0,92188.0,0.01681861]
[1767784051539,0.10834532,92212.0,92191.0,0.02299867]
[1767784051735,0.09612477,92210.0,92191.0,0.02299867]
[1767784051938,0.02189321,92209.0,92190.0,0.09325333]
[1767784052131,0.11421321,92208.0,92190.0,0.09325333]
[1767784052336,0.02189321,92207.0,92187.0,0.02299867]
[1767784053233,0.02189321,92206.0,92187.0,0.02299867]
[1767784056643,0.02189321,92205.0,92186.0,0.08834403]
[1767784056940,0.02189321,92205.0,92184.0,0.12013558]
[1767784058134,0.02189321,92205.0,92185.0,0.02299867]
[1767784059134,0.05972218,92195.0,92185.0,0.02299867]
[1767784059338,0.02189321,92205.0,92185.0,0.02299867]
[1767784060743,0.02189321,92205.0,92186.0,0.02299867]
[1767784062738,0.02189321,92199.0,92183.0,0.09232]
[1767784062939,0.09074089,92200.0,92181.0,0.02299867]
[1767784062940,0.09612477,92200.0,92181.0,0.02299867]
[1767784063144,0.09074089,92202.0,92182.0,0.02299867]
[1767784063746,0.02189321,92203.0,92184.0,0.02299867]
[1767784063941,0.02189321,92206.0,92185.0,0.02299867]
[1767784064136,0.02189321,92205.0,92185.0,0.02299867]
[1767784064336,0.02189321,92204.0,92185.0,0.02299867]
[1767784066843,0.11421321,92208.0,92189.0,0.02299867]
[1767784067238,0.02189321,92207.0,92189.0,0.02299867]
[1767784067438,0.02189321,92206.0,92188.0,0.09713691]
[1767784067748,0.02189321,92206.0,92186.0,0.02299867]
[1767784068754,0.02189321,92206.0,92187.0,0.02299867]
[1767784069051,0.02189321,92206.0,92189.0,0.00216947]
[1767784074044,0.02189321,92205.0,92189.0,0.00216947]
[1767784076543,0.09228,92209.0,92193.0,0.02299867]
[1767784077046,0.09228,92209.0,92195.0,0.02299867]
[1767784077746,0.02189321,92223.0,92203.0,0.02299867]
[1767784077954,0.02189321,92223.0,92204.0,0.02299867]
[1767784079049,0.1126341,92220.0,92203.0,0.09228]
[1767784079252,0.02189321,92219.0,92203.0,0.09228]
[1767784079450,0.02189321,92226.0,92204.0,0.09713691]
[1767784079655,0.02189321,92226.0,92207.0,0.02299867]
[1767784079858,0.02092602,92225.0,92206.0,0.09713691]
[1767784080154,0.02092602,92224.0,92206.0,0.09713691]
[1767784080354,0.02092602,92224.0,92203.0,0.11280765]
[1767784080659,0.02092602,92223.0,92203.0,0.11280765]
[1767784080847,0.02092602,92222.0,92203.0,0.11280765]
[1767784081447,0.02092602,92226.0,92204.0,0.09354958]
[1767784081647,0.02092602,92226.0,92206.0,0.02052765]
[1767784081850,0.0202627,92225.0,92206.0,0.02052765]
[1767784082049,0.0202627,92223.0,92203.0,0.09228]
[1767784082655,0.09497749,92221.0,92203.0,0.09228]
[1767784082859,0.0202627,92215.0,92203.0,0.09228]
[1767784083048,0.09497749,92216.0,92203.0,0.09228]
[1767784083658,0.09497749,92229.0,92203.0,0.09228]
[1767784085058,0.0202627,92228.0,92203.0,0.09228]
[1767784085259,0.11524019,92220.0,92203.0,0.09228]
[1767784086858,0.09497749,92220.0,92203.0,0.11356159]
[1767784087060,0.09497749,92220.0,92203.0,0.09228]
[1767784087746,0.09497749,92210.0,92199.0,0.09228]
[1767784087946,0.0202627,92220.0,92199.0,0.11356159]
[1767784088162,0.0202627,92220.0,92200.0,0.02128159]
[1767784088460,0.0202627,92220.0,92201.0,0.02128159]
[1767784089557,0.0202627,92220.0,92201.0,0.12042814]
[1767784089754,0.0202627,92225.0,92205.0,0.02128159]
[1767784090162,0.0202627,92224.0,92205.0,0.02128159]
[1767784090861,0.0202627,92223.0,92204.0,0.09914655]
[1767784091064,0.11524019,92223.0,92204.0,0.09914655]
[1767784091265,0.09497749,92223.0,92204.0,0.12042814]
[1767784091764,0.11524019,92223.0,92204.0,0.12042814]
[1767784092163,0.0202627,92221.0,92200.0,0.12042814]
[1767784092655,0.0202627,92220.0,92200.0,0.12042814]
[1767784093666,0.0202627,92220.0,92201.0,0.02128159]
[1767784093867,0.0202627,92220.0,92202.0,0.02128159]
[1767784096068,0.09497749,92221.0,92203.0,0.02128159]
[1767784096569,0.11524019,92221.0,92203.0,0.02128159]
[1767784097064,0.0202627,92217.0,92199.0,0.09228]
[1767784097260,0.0202627,92213.0,92199.0,0.09228]
[1767784097456,0.09228,92230.0,92199.0,0.09228]
[1767784097861,0.09228,92230.0,92199.0,0.19142655]
[1767784098062,0.09228,92230.0,92199.0,0.21270814]
[1767784098360,0.09228,92230.0,92200.0,0.09914655]
[1767784099475,0.11524019,92229.0,92200.0,0.09914655]
[1767784099770,0.0202627,92223.0,92200.0,0.12042814]
[1767784100068,0.0202627,92223.0,92201.0,0.02128159]
[1767784100264,0.0202627,92223.0,92204.0,0.12042814]
[1767784100770,0.0202627,92223.0,92204.0,0.09914655]
[1767784101169,0.0202627,92222.0,92201.0,0.02128159]
[1767784102063,0.0202627,92222.0,92201.0,0.12042814]
[1767784104077,0.0202627,92221.0,92201.0,0.09914655]
[1767784106579,0.0202627,92221.0,92201.0,0.12042814]
[1767784107082,0.0202627,92221.0,92203.0,0.12042814]
[1767784107564,0.09497749,92228.0,92203.0,0.12042814]
[1767784107565,0.0202627,92224.0,92203.0,0.12042814]
[1767784112584,0.0202627,92224.0,92204.0,0.1180857]
[1767784113386,0.0202627,92224.0,92205.0,0.1180857]
[1767784114685,0.1125427,92224.0,92205.0,0.1180857]
[1767784116887,0.0219363,92223.0,92205.0,0.1180857]
[1767784119888,0.12083907,92215.0,92190.0,0.1180857]
[1767784120085,0.0219363,92213.0,92191.0,0.09745588]
[1767784120487,0.0219363,92213.0,92191.0,0.1180857]
[1767784120687,0.0219363,92213.0,92193.0,0.1180857]
[1767784121380,0.0219363,92213.0,92193.0,0.09745588]
[1767784121975,0.0219363,92211.0,92190.0,0.02062982]
[1767784122288,0.0219363,92211.0,92189.0,0.09444947]
[1767784122289,0.0219363,92209.0,92189.0,0.09444947]
[1767784122590,0.0219363,92209.0,92190.0,0.1180857]
[1767784122994,0.0219363,92209.0,92191.0,0.1180857]
[1767784123789,0.0219363,92213.0,92191.0,0.1180857]
[1767784124691,0.0219363,92213.0,92192.0,0.02062982]
[1767784124991,0.0219363,92213.0,92192.0,0.1180857]
[1767784128889,0.0219363,92213.0,92193.0,0.1180857]
[1767784131991,0.0219363,92213.0,92194.0,0.1180857]
[1767784133193,0.0219363,92213.0,92195.0,0.1180857]
[1767784137483,0.09228,92214.0,92195.0,0.1180857]
[1767784139891,0.09228,92214.0,92189.0,0.09962535]
[1767784139892,0.02076536,92212.0,92189.0,0.09962535]
[1767784140091,0.02076536,92212.0,92192.0,0.02062982]
[1767784140291,0.02076536,92212.0,92193.0,0.1180857]
[1767784140490,0.07424257,92210.0,92194.0,0.1180857]
[1767784141193,0.07424257,92210.0,92195.0,0.1180857]
[1767784143998,0.07424257,92205.0,92195.0,0.1180857]
[1767784144200,0.08858575,92209.0,92195.0,0.1180857]
[1767784144400,0.16652257,92210.0,92197.0,0.11270812]
[1767784144697,0.16652257,92210.0,92199.0,0.09237468]
[1767784149188,0.16652257,92210.0,92189.0,0.00216947]
[1767784149398,0.07424257,92200.0,92189.0,0.00216947]
[1767784151394,0.07424257,92200.0,92189.0,0.09962769]
[1767784152502,0.07424257,92200.0,92189.0,0.13012783]
[1767784152693,0.07424257,92200.0,92190.0,0.09745822]
[1767784153297,0.03084582,92199.0,92184.0,0.09745822]
[1767784153601,0.07424257,92194.0,92184.0,0.09745822]
[1767784153897,0.07424257,92200.0,92185.0,0.09745822]
[1767784154303,0.07424257,92200.0,92184.0,0.03050014]
[1767784154304,0.07424257,92195.0,92179.0,0.03050014]
[1767784154506,0.07424257,92191.0,92179.0,0.03050014]
[1767784156307,0.07424257,92191.0,92180.0,0.09745822]
[1767784157414,0.09228,92202.0,92180.0,0.09745822]
[1767784157609,0.07424257,92190.0,92180.0,0.09745822]
[1767784159115,0.09228,92202.0,92180.0,0.09745822]
[1767784159311,0.09228,92202.0,92182.0,0.09745822]
[1767784159312,0.07424257,92190.0,92182.0,0.09745822]
[1767784159809,0.03084582,92189.0,92170.0,0.09745822]
[1767784160014,0.07424257,92180.0,92170.0,0.09745822]
[1767784160405,0.10508839,92180.0,92165.0,0.09745822]
[1767784160615,0.07424257,92174.0,92165.0,0.09745822]
[1767784161214,0.10508839,92180.0,92165.0,0.09745822]
[1767784161516,0.08846998,92185.0,92159.0,0.03050014]
[1767784161517,0.07424257,92175.0,92159.0,0.03050014]
[1767784161816,0.09228,92181.0,92174.0,0.09745822]
[1767784162006,0.09228,92181.0,92173.0,0.03050014]
[1767784162007,0.09228,92181.0,92168.0,0.09745822]
[1767784164205,0.07424257,92180.0,92168.0,0.09745822]
[1767784164907,0.07424257,92180.0,92169.0,0.03050014]
[1767784165219,0.09228,92181.0,92170.0,0.09745822]
[1767784165415,0.07424257,92200.0,92183.0,0.09745822]
[1767784165615,0.12312582,92205.0,92186.0,0.09745822]
[1767784165819,0.07424257,92200.0,92188.0,0.12795836]
[1767784166116,0.07424257,92200.0,92189.0,0.09745822]
[1767784168914,0.09228,92207.0,92189.0,0.09745822]
[1767784169114,0.07424257,92200.0,92189.0,0.09745822]
[1767784170719,0.49228,92207.0,92189.0,0.09745822]
[1767784170908,0.07424257,92200.0,92189.0,0.09745822]
[1767784173823,0.12946632,92207.0,92189.0,0.09745822]
[1767784174022,0.07424257,92200.0,92189.0,0.09745822]
[1767784174222,0.12946632,92207.0,92189.0,0.09745822]
[1767784174720,0.07424257,92200.0,92189.0,0.09745822]
[1767784175415,0.12946632,92207.0,92189.0,0.09745822]
[1767784176917,0.09228,92217.0,92198.0,0.09016127]
[1767784177117,0.09228,92217.0,92199.0,0.09016127]
[1767784179011,0.09228,92217.0,92201.0,0.09016127]
[1767784179208,0.09228,92217.0,92202.0,0.09016127]
[1767784182421,0.09228,92217.0,92206.0,0.03554745]
[1767784182622,0.09228,92217.0,92207.0,0.09016127]
[1767784183515,0.09228,92217.0,92210.0,0.09016127]
[1767784184016,0.00216876,92219.0,92210.0,0.09016127]
[1767784187228,0.00216876,92219.0,92211.0,0.03554745]
[1767784187526,0.09228,92225.0,92216.0,0.09016127]
[1767784188128,0.09228,92233.0,92220.0,0.09016127]
[1767784188429,0.07424257,92230.0,92220.0,0.09016127]
[1767784191023,0.09228,92233.0,92220.0,0.09016127]
[1767784191332,0.07424257,92230.0,92220.0,0.09016127]
[1767784191630,0.07424257,92230.0,92206.0,0.03554745]
[1767784192331,0.09228,92233.0,92206.0,0.03054745]
[1767784192626,0.07424257,92230.0,92206.0,0.01096229]
[1767784192824,0.07424257,92230.0,92205.0,0.1779928]
[1767784193629,0.07424257,92230.0,92206.0,0.09016127]
[1767784193932,0.07424257,92230.0,92206.0,0.10111489]
[1767784194317,0.07424257,92230.0,92207.0,0.03554745]
[1767784194516,0.07424257,92230.0,92211.0,0.12570872]
[1767784195917,0.07424257,92230.0,92212.0,0.03554745]
[1767784196520,0.07424257,92230.0,92212.0,0.12570872]
[1767784198527,0.09228,92233.0,92213.0,0.12570872]
[1767784198727,0.07424257,92230.0,92214.0,0.03554745]
[1767784199434,0.09228,92233.0,92214.0,0.03554745]
[1767784199641,0.07424257,92230.0,92214.0,0.03554745]
[1767784201834,0.07424257,92230.0,92214.0,0.13462326]
[1767784202733,0.03613859,92232.0,92214.0,0.09907581]
[1767784205037,0.03613859,92228.0,92208.0,0.09907581]
[1767784205337,0.03613859,92232.0,92211.0,0.0360183]
[1767784206140,0.03613859,92231.0,92211.0,0.0360183]
[1767784207336,0.1317238,92228.0,92205.0,0.1779928]
[1767784207636,0.03613859,92227.0,92206.0,0.13509411]
[1767784207832,0.03613859,92227.0,92207.0,0.0360183]
[1767784208036,0.09228,92233.0,92205.0,0.0857128]
[1767784208037,0.03613859,92223.0,92205.0,0.0857128]
[1767784208334,0.03613859,92222.0,92203.0,0.09228]
[1767784208736,0.03613859,92219.0,92203.0,0.09228]
[1767784210327,0.03613859,92216.0,92196.0,0.09907581]
[1767784211342,0.03613859,92214.0,92194.0,0.09228]
[1767784211733,0.03613859,92218.0,92198.0,0.0360183]
[1767784212837,0.03613859,92218.0,92198.0,0.13509411]
[1767784213136,0.03613859,92217.0,92198.0,0.09907581]
[1767784213337,0.03613859,92217.0,92198.0,0.09407581]
[1767784215040,0.03613859,92217.0,92198.0,0.13009411]
[1767784215837,0.03613859,92217.0,92199.0,0.13509411]
[1767784219337,0.03613859,92222.0,92200.0,0.13509411]
[1767784221040,0.03613859,92222.0,92201.0,0.13509411]
[1767784221442,0.03613859,92222.0,92203.0,0.13509411]
[1767784222643,0.18786521,92223.0,92204.0,0.13509411]
[1767784222843,0.2240038,92223.0,92204.0,0.13509411]
[1767784224041,0.12841859,92223.0,92204.0,0.13509411]
[1767784225036,0.12841859,92223.0,92205.0,0.0360183]
[1767784225541,0.09228,92223.0,92211.0,0.13509411]
[1767784225731,0.09228,92223.0,92212.0,0.13509411]
[1767784226241,0.09228,92223.0,92212.0,0.09907581]
[1767784228551,0.09228,92223.0,92209.0,0.0360183]
[1767784230950,0.09228,92223.0,92209.0,0.13509411]
[1767784239353,0.09228,92223.0,92210.0,0.09951789]
[1767784243750,0.09228,92223.0,92207.0,0.03314819]
[1767784250959,0.12516928,92203.0,92191.0,0.03314819]
[1767784251153,0.12516928,92203.0,92183.0,0.09951789]
[1767784251154,0.03023667,92202.0,92183.0,0.09951789]
[1767784251459,0.03023667,92200.0,92179.0,0.09228]
[1767784251760,0.03023667,92200.0,92177.0,0.09951789]
[1767784251957,0.03023667,92200.0,92135.0,0.05887079]
[1767784251958,0.03023667,92200.0,92179.0,0.09951789]
[1767784252262,0.03023667,92200.0,92179.0,0.19179789]
[1767784252652,0.03023667,92200.0,92180.0,0.09951789]
[1767784252952,0.09493261,92201.0,92180.0,0.09951789]
[1767784253152,0.09493261,92201.0,92181.0,0.03314819]
[1767784253552,0.09493261,92201.0,92182.0,0.03314819]
[1767784254857,0.09493261,92201.0,92183.0,0.03314819]
[1767784261866,0.03131793,92199.0,92179.0,0.12329225]
[1767784262054,0.03131793,92198.0,92179.0,0.12329225]
[1767784262364,0.09732805,92199.0,92180.0,0.03101225]
[1767784262557,0.03131793,92195.0,92179.0,0.09228]
[1767784263060,0.03131793,92195.0,92176.0,0.12853219]
[1767784263265,0.03131793,92195.0,92177.0,0.12329225]
[1767784263453,0.09732805,92196.0,92177.0,0.12329225]
[1767784264058,0.09732805,92196.0,92178.0,0.03101225]
[1767784264563,0.07426591,92190.0,92178.0,0.03101225]
[1767784265362,0.07426591,92190.0,92177.0,0.09228]
[1767784265766,0.07426591,92190.0,92177.0,0.12329225]
[1767784265960,0.07426591,92190.0,92177.0,0.09228]
[1767784266157,0.07426591,92190.0,92178.0,0.03101225]
[1767784270667,0.07426591,92190.0,92177.0,0.09228]
[1767784273170,0.07426591,92187.0,92177.0,0.09228]
[1767784273373,0.10558384,92187.0,92170.0,0.09228]
[1767784273571,0.07426591,92180.0,92170.0,0.09228]
[1767784273762,0.03131793,92187.0,92167.0,0.03101225]
[1767784273963,0.03131793,92187.0,92168.0,0.12329225]
[1767784274162,0.09732805,92188.0,92169.0,0.03101225]
[1767784274372,0.12864598,92188.0,92169.0,0.03101225]
[1767784274774,0.07426591,92180.0,92162.0,0.09228]
[1767784274969,0.03131793,92179.0,92162.0,0.09228]
[1767784275273,0.17159396,92180.0,92163.0,0.03101225]
[1767784275470,0.07426591,92180.0,92163.0,0.03101225]
[1767784275870,0.07426591,92180.0,92162.0,0.09228]
[1767784275871,0.07426591,92173.0,92162.0,0.09228]
[1767784277059,0.03131793,92177.0,92162.0,0.09228]
[1767784277760,0.07426591,92172.0,92162.0,0.09228]
[1767784278859,0.07426591,92172.0,92162.0,0.00216947]
[1767784282277,0.03131793,92170.0,92156.0,0.0924486]
[1767784282775,0.07426591,92166.0,92156.0,0.0001286]